[Event "Late-Titled-Tuesday-Blitz-April-02-2024"]
[Site "Chess.com"]
[Date "2024.04.02"]
[Round "5"]
[White "Good_Knight_Kiss"]
[Black "Rodalquilar"]
[Result "0-1"]
[WhiteElo "2507"]
[BlackElo "2738"]
[TimeControl "180+1"]
[EndTime "14:52:43 PDT"]
[Termination "Rodalquilar won on time"]

1. e4 {[%clk 0:03:00.9]} 1... d5 {[%clk 0:03:00.2]} 2. exd5 {[%clk 0:03:00.3]}
2... Qxd5 {[%clk 0:03:01.1]} 3. Nc3 {[%clk 0:03:00]} 3... Qa5 {[%clk 0:03:01.2]}
4. Bc4 {[%clk 0:02:59.1]} 4... Nf6 {[%clk 0:03:01.4]} 5. d3 {[%clk 0:02:59.2]}
5... Bg4 {[%clk 0:03:01.2]} 6. f3 {[%clk 0:02:58.9]} 6... Bd7 {[%clk 0:03:00.6]}
7. Bd2 {[%clk 0:02:57.6]} 7... Qb6 {[%clk 0:03:00.1]} 8. f4 {[%clk 0:02:35.5]}
8... Nc6 {[%clk 0:02:26.7]} 9. Nf3 {[%clk 0:02:34.9]} 9... Nd4 {[%clk
0:02:20.7]} 10. Nxd4 {[%clk 0:02:31]} 10... Qxd4 {[%clk 0:02:21]} 11. Qe2 {[%clk
0:02:15.9]} 11... Bg4 {[%clk 0:02:12.3]} 12. Qe3 {[%clk 0:02:00.3]} 12... Qxe3+
{[%clk 0:02:08.1]} 13. Bxe3 {[%clk 0:02:00.2]} 13... c6 {[%clk 0:02:09]} 14. h3
{[%clk 0:01:51.6]} 14... Bc8 {[%clk 0:02:09.1]} 15. O-O-O {[%clk 0:01:48.2]}
15... h5 {[%clk 0:02:09.3]} 16. Ne4 {[%clk 0:01:26.1]} 16... h4 {[%clk
0:02:06.9]} 17. Ng5 {[%clk 0:01:22.9]} 17... e6 {[%clk 0:02:05.9]} 18. Rhe1
{[%clk 0:01:11.7]} 18... Be7 {[%clk 0:02:01.8]} 19. f5 {[%clk 0:00:55.1]} 19...
Nd5 {[%clk 0:01:02.5]} 20. Bxd5 {[%clk 0:00:36.5]} 20... cxd5 {[%clk 0:01:03.4]}
21. fxe6 {[%clk 0:00:32.3]} 21... Bxe6 {[%clk 0:01:03.6]} 22. Nxe6 {[%clk
0:00:25.7]} 22... fxe6 {[%clk 0:01:04.5]} 23. Bd4 {[%clk 0:00:22.4]} 23... Kf7
{[%clk 0:01:03.8]} 24. Rf1+ {[%clk 0:00:22.1]} 24... Bf6 {[%clk 0:01:04.3]} 25.
Rde1 {[%clk 0:00:15.1]} 25... Rae8 {[%clk 0:00:56.9]} 26. Kd2 {[%clk 0:00:13.2]}
26... Rh5 {[%clk 0:00:55.9]} 27. Bxa7 {[%clk 0:00:10.2]} 27... Ra8 {[%clk
0:00:55.9]} 28. Bf2 {[%clk 0:00:07.6]} 28... Rxa2 {[%clk 0:00:55.3]} 29. b3
{[%clk 0:00:05.7]} 29... Rg5 {[%clk 0:00:52.1]} 30. Bxh4 {[%clk 0:00:02.3]}
30... Rxg2+ {[%clk 0:00:52.4]} 31. Ke3 {[%clk 0:00:02]} 31... Raxc2 {[%clk
0:00:48.3]} 32. Bxf6 {[%clk 0:00:01.9]} 32... gxf6 {[%clk 0:00:48.4]} 0-1

[Event "Late-Titled-Tuesday-Blitz-April-02-2024"]
[Site "Chess.com"]
[Date "2024.04.02"]
[Round "5"]
[White "ricaurtelopezj1955"]
[Black "N_I_Chess"]
[Result "1-0"]
[WhiteElo "2182"]
[BlackElo "2367"]
[TimeControl "180+1"]
[EndTime "14:52:43 PDT"]
[Termination "ricaurtelopezj1955 won by resignation"]

1. e4 {[%clk 0:03:00.9]} 1... Nf6 {[%clk 0:01:27.8]} 2. e5 {[%clk 0:02:57.5]}
2... Nd5 {[%clk 0:01:28.5]} 3. d4 {[%clk 0:02:54.8]} 3... d6 {[%clk 0:01:28.4]}
4. c4 {[%clk 0:02:54.9]} 4... Nb6 {[%clk 0:01:27.8]} 5. f4 {[%clk 0:02:53.3]}
5... dxe5 {[%clk 0:01:27]} 6. fxe5 {[%clk 0:02:52.1]} 6... g6 {[%clk 0:01:27.5]}
7. Nc3 {[%clk 0:02:48.3]} 7... Bg7 {[%clk 0:01:27.3]} 8. Be3 {[%clk 0:02:47.7]}
8... O-O {[%clk 0:01:23.8]} 9. Qd2 {[%clk 0:02:47.1]} 9... c5 {[%clk 0:01:23]}
10. d5 {[%clk 0:02:35.7]} 10... Bxe5 {[%clk 0:01:20.5]} 11. Nf3 {[%clk
0:02:31.8]} 11... Bg7 {[%clk 0:01:20.1]} 12. Bxc5 {[%clk 0:02:30.6]} 12... N8d7
{[%clk 0:01:19]} 13. Bd4 {[%clk 0:02:27.3]} 13... Nf6 {[%clk 0:01:18.4]} 14.
O-O-O {[%clk 0:02:23.4]} 14... Bf5 {[%clk 0:01:13.6]} 15. Bd3 {[%clk 0:02:16.3]}
15... Bxd3 {[%clk 0:01:12.5]} 16. Qxd3 {[%clk 0:02:15.2]} 16... Rc8 {[%clk
0:01:13.4]} 17. b3 {[%clk 0:02:12.5]} 17... Nbd7 {[%clk 0:01:12.1]} 18. Kb1
{[%clk 0:02:08.3]} 18... Nc5 {[%clk 0:01:11.9]} 19. Qe2 {[%clk 0:01:49.7]} 19...
a6 {[%clk 0:01:04.2]} 20. Rhe1 {[%clk 0:01:48.1]} 20... Re8 {[%clk 0:01:04.5]}
21. Ne5 {[%clk 0:01:43.4]} 21... b5 {[%clk 0:01:01.5]} 22. Nc6 {[%clk 0:01:42]}
22... Qd6 {[%clk 0:00:31.4]} 23. Nxe7+ {[%clk 0:01:26.5]} 23... Kh8 {[%clk
0:00:31.4]} 24. Nxc8 {[%clk 0:01:25.7]} 24... Qd8 {[%clk 0:00:16.8]} 25. Nd6
{[%clk 0:01:05]} 25... Rf8 {[%clk 0:00:10.7]} 26. Bxc5 {[%clk 0:00:58.7]} 26...
Kg8 {[%clk 0:00:08.2]} 27. Qe7 {[%clk 0:00:54.4]} 27... Qa8 {[%clk 0:00:06.8]}
28. Bd4 {[%clk 0:00:45.1]} 28... bxc4 {[%clk 0:00:05.2]} 29. Bxf6 {[%clk
0:00:43.4]} 1-0

[Event "Late-Titled-Tuesday-Blitz-April-02-2024"]
[Site "Chess.com"]
[Date "2024.04.02"]
[Round "5"]
[White "stasOR4ik"]
[Black "Squirlolz"]
[Result "1-0"]
[WhiteElo "2431"]
[BlackElo "2571"]
[TimeControl "180+1"]
[EndTime "14:52:45 PDT"]
[Termination "stasOR4ik won by checkmate"]

1. e4 {[%clk 0:03:00.9]} 1... d6 {[%clk 0:02:54.8]} 2. c4 {[%clk 0:02:50.6]}
2... Nf6 {[%clk 0:02:53.8]} 3. Nc3 {[%clk 0:02:51.5]} 3... c5 {[%clk 0:02:51]}
4. g3 {[%clk 0:02:51.8]} 4... g6 {[%clk 0:02:51.2]} 5. Bg2 {[%clk 0:02:52.1]}
5... Bg7 {[%clk 0:02:51.9]} 6. Nge2 {[%clk 0:02:52.6]} 6... O-O {[%clk
0:02:52.2]} 7. O-O {[%clk 0:02:52.3]} 7... Nc6 {[%clk 0:02:52.7]} 8. a3 {[%clk
0:02:52.9]} 8... a5 {[%clk 0:02:48.5]} 9. d3 {[%clk 0:02:49.3]} 9... Nd7 {[%clk
0:02:40.1]} 10. Nb5 {[%clk 0:02:45.6]} 10... b6 {[%clk 0:02:24.8]} 11. Rb1
{[%clk 0:02:45]} 11... Bb7 {[%clk 0:02:23.2]} 12. Bg5 {[%clk 0:02:44.3]} 12...
Rc8 {[%clk 0:02:11.2]} 13. Nxd6 {[%clk 0:02:43.1]} 13... Rb8 {[%clk 0:01:58.1]}
14. Nxb7 {[%clk 0:02:42.7]} 14... Rxb7 {[%clk 0:01:58.2]} 15. e5 {[%clk
0:02:32.7]} 15... Rc7 {[%clk 0:01:35.5]} 16. e6 {[%clk 0:02:31.2]} 16... fxe6
{[%clk 0:01:34]} 17. Nf4 {[%clk 0:02:30.1]} 17... Nd4 {[%clk 0:01:28.9]} 18.
Nxe6 {[%clk 0:02:14.4]} 18... Nxe6 {[%clk 0:01:28]} 19. Bd5 {[%clk 0:02:14.1]}
19... Kh8 {[%clk 0:01:05.6]} 20. Bxe6 {[%clk 0:02:10.5]} 20... Ne5 {[%clk
0:01:06.5]} 21. Bd5 {[%clk 0:01:46.8]} 21... Qd6 {[%clk 0:00:56.8]} 22. f4
{[%clk 0:01:40.9]} 22... Ng4 {[%clk 0:00:54.8]} 23. Qxg4 {[%clk 0:01:39.1]}
23... Rf5 {[%clk 0:00:39.6]} 24. Rbe1 {[%clk 0:01:24.2]} 24... Rxd5 {[%clk
0:00:39.2]} 25. cxd5 {[%clk 0:01:23.1]} 25... Qxd5 {[%clk 0:00:40.1]} 26. Qf3
{[%clk 0:01:15.7]} 26... Qd6 {[%clk 0:00:40.5]} 27. Kg2 {[%clk 0:01:12.1]} 27...
h6 {[%clk 0:00:39.7]} 28. Bh4 {[%clk 0:01:11.9]} 28... c4 {[%clk 0:00:40.3]} 29.
dxc4 {[%clk 0:01:04.9]} 29... Rxc4 {[%clk 0:00:41.2]} 30. Rxe7 {[%clk
0:01:00.5]} 30... g5 {[%clk 0:00:26.3]} 31. Re8+ {[%clk 0:00:57.4]} 31... Kh7
{[%clk 0:00:23.3]} 32. fxg5 {[%clk 0:00:57.6]} 32... Rc2+ {[%clk 0:00:20.6]} 33.
Re2 {[%clk 0:00:57.2]} 33... Rxe2+ {[%clk 0:00:15.8]} 34. Qxe2 {[%clk
0:00:58.1]} 34... hxg5 {[%clk 0:00:16.4]} 35. Qe4+ {[%clk 0:00:54.6]} 35... Kh6
{[%clk 0:00:15.2]} 36. Bxg5+ {[%clk 0:00:51.1]} 36... Kxg5 {[%clk 0:00:15]} 37.
Rf5+ {[%clk 0:00:43.2]} 37... Kh6 {[%clk 0:00:15.1]} 38. Qh4+ {[%clk 0:00:42.9]}
38... Kg6 {[%clk 0:00:15.6]} 39. Qh5# {[%clk 0:00:43.5]} 1-0

[Event "Late-Titled-Tuesday-Blitz-April-02-2024"]
[Site "Chess.com"]
[Date "2024.04.02"]
[Round "5"]
[White "Godzillator"]
[Black "Juicy_Fork"]
[Result "1-0"]
[WhiteElo "2399"]
[BlackElo "2540"]
[TimeControl "180+1"]
[EndTime "14:52:49 PDT"]
[Termination "Godzillator won on time"]

1. Nf3 {[%clk 0:03:00.6]} 1... Nf6 {[%clk 0:02:59.2]} 2. c4 {[%clk 0:02:59.8]}
2... g6 {[%clk 0:02:54.2]} 3. b3 {[%clk 0:02:54.1]} 3... Bg7 {[%clk 0:02:53.1]}
4. Bb2 {[%clk 0:02:54.5]} 4... O-O {[%clk 0:02:26.4]} 5. g3 {[%clk 0:02:53.8]}
5... b6 {[%clk 0:02:25.5]} 6. Bg2 {[%clk 0:02:54]} 6... Bb7 {[%clk 0:02:25.4]}
7. O-O {[%clk 0:02:54.6]} 7... d6 {[%clk 0:02:20.1]} 8. d4 {[%clk 0:02:53.4]}
8... Nbd7 {[%clk 0:02:18.8]} 9. Nbd2 {[%clk 0:02:52.4]} 9... Re8 {[%clk
0:02:18.7]} 10. d5 {[%clk 0:02:49.3]} 10... e6 {[%clk 0:02:15.9]} 11. dxe6
{[%clk 0:02:47.4]} 11... Rxe6 {[%clk 0:02:15.2]} 12. e3 {[%clk 0:02:46.3]} 12...
Nc5 {[%clk 0:02:13.4]} 13. Qc2 {[%clk 0:02:44.4]} 13... d5 {[%clk 0:02:06.8]}
14. Rad1 {[%clk 0:02:42.9]} 14... Qe8 {[%clk 0:02:01.6]} 15. cxd5 {[%clk
0:02:40.7]} 15... Bxd5 {[%clk 0:01:59.3]} 16. Nc4 {[%clk 0:02:39.3]} 16... Rd8
{[%clk 0:01:56.4]} 17. b4 {[%clk 0:02:18.2]} 17... Nce4 {[%clk 0:01:31.2]} 18.
Nd4 {[%clk 0:02:16.6]} 18... Re7 {[%clk 0:01:30.1]} 19. b5 {[%clk 0:02:10.8]}
19... Ng4 {[%clk 0:01:16.9]} 20. Nc6 {[%clk 0:01:55.9]} 20... Bxc6 {[%clk
0:00:54.1]} 21. Rxd8 {[%clk 0:01:55.7]} 21... Qxd8 {[%clk 0:00:52.5]} 22. bxc6
{[%clk 0:01:55.8]} 22... Nc5 {[%clk 0:00:29.9]} 23. Bxg7 {[%clk 0:01:53.6]}
23... Kxg7 {[%clk 0:00:28.8]} 24. Rd1 {[%clk 0:01:46.2]} 24... Qe8 {[%clk
0:00:28.7]} 25. h3 {[%clk 0:01:42.2]} 25... Ne5 {[%clk 0:00:25.5]} 26. Nxe5
{[%clk 0:01:39]} 26... Rxe5 {[%clk 0:00:26.4]} 27. Qc3 {[%clk 0:01:37.3]} 27...
f6 {[%clk 0:00:25.5]} 28. Qd4 {[%clk 0:01:30.5]} 28... Re6 {[%clk 0:00:24]} 29.
Qd8 {[%clk 0:01:27.7]} 29... Qxd8 {[%clk 0:00:09.3]} 30. Rxd8 {[%clk 0:01:28.6]}
30... a5 {[%clk 0:00:05.7]} 31. g4 {[%clk 0:01:21.2]} 31... a4 {[%clk
0:00:03.3]} 32. a3 {[%clk 0:01:18.6]} 32... b5 {[%clk 0:00:02.6]} 33. Rb8 {[%clk
0:01:14.3]} 33... Rd6 {[%clk 0:00:02.4]} 34. Rxb5 {[%clk 0:01:13.2]} 34... Rd1+
{[%clk 0:00:02.7]} 35. Kh2 {[%clk 0:01:12.9]} 35... Nd3 {[%clk 0:00:03.2]} 36.
Kg3 {[%clk 0:01:11.2]} 36... Rd2 {[%clk 0:00:03.4]} 37. Rb7 {[%clk 0:01:07.4]}
1-0

[Event "Late-Titled-Tuesday-Blitz-April-02-2024"]
[Site "Chess.com"]
[Date "2024.04.02"]
[Round "5"]
[White "Sesleria"]
[Black "steepedgames"]
[Result "0-1"]
[WhiteElo "2148"]
[BlackElo "2523"]
[TimeControl "180+1"]
[EndTime "14:52:49 PDT"]
[Termination "steepedgames won by resignation"]

1. c4 {[%clk 0:02:53.9]} 1... f5 {[%clk 0:02:58]} 2. e4 {[%clk 0:02:51.8]} 2...
fxe4 {[%clk 0:02:57.6]} 3. d3 {[%clk 0:02:51.9]} 3... exd3 {[%clk 0:02:56.3]} 4.
Bxd3 {[%clk 0:02:52.2]} 4... Nf6 {[%clk 0:02:56.6]} 5. g4 {[%clk 0:02:51.7]}
5... d6 {[%clk 0:02:43.7]} 6. g5 {[%clk 0:02:45.7]} 6... Ng4 {[%clk 0:02:43.4]}
7. g6 {[%clk 0:02:26.7]} 7... h6 {[%clk 0:02:40.7]} 8. Nf3 {[%clk 0:02:15.8]}
8... Nc6 {[%clk 0:02:37.9]} 9. Bf4 {[%clk 0:02:09.9]} 9... e5 {[%clk 0:02:36.6]}
10. Qe2 {[%clk 0:02:02.5]} 10... Qf6 {[%clk 0:02:35.6]} 11. Nc3 {[%clk
0:01:51.4]} 11... Be6 {[%clk 0:02:28.2]} 12. Nd5 {[%clk 0:01:45]} 12... Bxd5
{[%clk 0:02:27.1]} 13. cxd5 {[%clk 0:01:45.4]} 13... Qxf4 {[%clk 0:02:24.9]} 14.
dxc6 {[%clk 0:01:45.4]} 14... bxc6 {[%clk 0:02:25.4]} 15. h3 {[%clk 0:01:31.7]}
15... Nf6 {[%clk 0:02:20.8]} 16. Rg1 {[%clk 0:01:16.9]} 16... e4 {[%clk
0:02:13.6]} 17. Nd4 {[%clk 0:00:47.3]} 17... Qe5 {[%clk 0:01:46.4]} 18. Nxc6
{[%clk 0:00:42.9]} 18... exd3 {[%clk 0:01:45.8]} 19. Nxe5 {[%clk 0:00:33.5]}
19... dxe2 {[%clk 0:01:45.6]} 20. Nf7 {[%clk 0:00:28.5]} 20... Rg8 {[%clk
0:01:42.4]} 21. Rg3 {[%clk 0:00:27.8]} 21... Kd7 {[%clk 0:01:36.1]} 22. Rc1
{[%clk 0:00:22.7]} 22... Be7 {[%clk 0:01:26.1]} 23. Rd3 {[%clk 0:00:21.9]} 23...
Rgc8 {[%clk 0:01:00.8]} 24. Ne5+ {[%clk 0:00:21.1]} 24... Ke8 {[%clk 0:01:00.9]}
25. Nc6 {[%clk 0:00:21.4]} 25... Kf8 {[%clk 0:00:59.5]} 26. Re3 {[%clk 0:00:21]}
26... Re8 {[%clk 0:00:55.6]} 27. Rf3 {[%clk 0:00:17.6]} 27... d5 {[%clk
0:00:50.9]} 28. a3 {[%clk 0:00:15.2]} 28... Bd6 {[%clk 0:00:50.5]} 29. Rcc3
{[%clk 0:00:13.9]} 29... Re4 {[%clk 0:00:49.6]} 30. b4 {[%clk 0:00:09.2]} 30...
a6 {[%clk 0:00:49.1]} 31. Na5 {[%clk 0:00:07.9]} 31... Rae8 {[%clk 0:00:48.6]}
32. Nb3 {[%clk 0:00:07.8]} 32... R8e7 {[%clk 0:00:47.2]} 33. Nd2 {[%clk
0:00:08.2]} 33... Be5 {[%clk 0:00:47.7]} 34. Nxe4 {[%clk 0:00:08.2]} 34... dxe4
{[%clk 0:00:47.9]} 35. Rxf6+ {[%clk 0:00:02]} 35... Bxf6 {[%clk 0:00:47.1]} 36.
Rc6 {[%clk 0:00:01.2]} 36... Rd7 {[%clk 0:00:46.5]} 0-1

[Event "Late-Titled-Tuesday-Blitz-April-02-2024"]
[Site "Chess.com"]
[Date "2024.04.02"]
[Round "5"]
[White "Hirna2005"]
[Black "DeArron_Fox"]
[Result "0-1"]
[WhiteElo "2324"]
[BlackElo "2533"]
[TimeControl "180+1"]
[EndTime "14:52:50 PDT"]
[Termination "DeArron_Fox won on time"]

1. e4 {[%clk 0:03:00.9]} 1... c5 {[%clk 0:02:56.9]} 2. c3 {[%clk 0:03:00.6]}
2... d5 {[%clk 0:02:56.7]} 3. exd5 {[%clk 0:03:00.4]} 3... Qxd5 {[%clk
0:02:57.6]} 4. Nf3 {[%clk 0:03:00.7]} 4... Nf6 {[%clk 0:02:58.1]} 5. Na3 {[%clk
0:03:00.3]} 5... e6 {[%clk 0:02:53.9]} 6. Bc4 {[%clk 0:02:59.4]} 6... Qd8 {[%clk
0:02:53.2]} 7. O-O {[%clk 0:02:58.7]} 7... a6 {[%clk 0:02:42.9]} 8. d4 {[%clk
0:02:58.7]} 8... b5 {[%clk 0:02:38.1]} 9. Bd3 {[%clk 0:02:51.9]} 9... Bb7 {[%clk
0:02:37.1]} 10. Nc2 {[%clk 0:02:47.9]} 10... Nbd7 {[%clk 0:02:33.9]} 11. a4
{[%clk 0:02:46.5]} 11... b4 {[%clk 0:02:26.1]} 12. Bf4 {[%clk 0:02:35.1]} 12...
Be7 {[%clk 0:02:22.2]} 13. Qe2 {[%clk 0:02:24.5]} 13... O-O {[%clk 0:02:20]} 14.
dxc5 {[%clk 0:02:18.8]} 14... bxc3 {[%clk 0:02:07.5]} 15. bxc3 {[%clk
0:01:50.4]} 15... Nxc5 {[%clk 0:02:07.5]} 16. Bc4 {[%clk 0:01:47.9]} 16... Nd5
{[%clk 0:02:02.2]} 17. Bd2 {[%clk 0:01:42.7]} 17... Bf6 {[%clk 0:01:58.7]} 18.
Rfd1 {[%clk 0:01:41]} 18... Qe7 {[%clk 0:01:56.3]} 19. Ncd4 {[%clk 0:01:38.3]}
19... Rac8 {[%clk 0:01:52.3]} 20. Ne5 {[%clk 0:01:21.1]} 20... Ne4 {[%clk
0:00:57.9]} 21. Qxe4 {[%clk 0:01:06.3]} 21... Nxc3 {[%clk 0:00:57.9]} 22. Ndc6
{[%clk 0:00:34.7]} 22... Nxe4 {[%clk 0:00:52.6]} 23. Nxe7+ {[%clk 0:00:33.8]}
23... Bxe7 {[%clk 0:00:53.5]} 24. Ba5 {[%clk 0:00:20.2]} 24... Bf6 {[%clk
0:00:45.6]} 25. Nd7 {[%clk 0:00:19.5]} 25... Bxa1 {[%clk 0:00:42.3]} 26. Nxf8
{[%clk 0:00:19.1]} 26... Kxf8 {[%clk 0:00:32.3]} 27. Bb4+ {[%clk 0:00:03.5]}
27... Ke8 {[%clk 0:00:32.2]} 28. Bd3 {[%clk 0:00:02.1]} 28... Bb2 {[%clk
0:00:30.5]} 0-1

[Event "Late-Titled-Tuesday-Blitz-April-02-2024"]
[Site "Chess.com"]
[Date "2024.04.02"]
[Round "5"]
[White "zverr1"]
[Black "Gabcur"]
[Result "0-1"]
[WhiteElo "2533"]
[BlackElo "2350"]
[TimeControl "180+1"]
[EndTime "14:52:51 PDT"]
[Termination "Gabcur won on time"]

1. e4 {[%clk 0:03:00.9]} 1... e6 {[%clk 0:02:59.8]} 2. d4 {[%clk 0:03:00.9]}
2... d5 {[%clk 0:03:00]} 3. Nc3 {[%clk 0:03:01.7]} 3... Bb4 {[%clk 0:02:59.6]}
4. Ne2 {[%clk 0:03:01.6]} 4... dxe4 {[%clk 0:02:57.1]} 5. a3 {[%clk 0:03:00.9]}
5... Bxc3+ {[%clk 0:02:57.2]} 6. Nxc3 {[%clk 0:03:01.8]} 6... Nc6 {[%clk
0:02:57.1]} 7. d5 {[%clk 0:03:01.9]} 7... exd5 {[%clk 0:02:52.7]} 8. Qxd5 {[%clk
0:03:02.8]} 8... Be6 {[%clk 0:02:52.4]} 9. Qxe4 {[%clk 0:03:02.7]} 9... Nf6
{[%clk 0:02:51.6]} 10. Qh4 {[%clk 0:03:02.8]} 10... Qe7 {[%clk 0:02:51.7]} 11.
Bg5 {[%clk 0:01:54.8]} 11... O-O-O {[%clk 0:02:43.2]} 12. Be2 {[%clk 0:01:39.2]}
12... Nd4 {[%clk 0:02:23.5]} 13. O-O-O {[%clk 0:01:34.5]} 13... Nxe2+ {[%clk
0:02:12.5]} 14. Nxe2 {[%clk 0:01:35.4]} 14... Bf5 {[%clk 0:01:42.9]} 15. Bxf6
{[%clk 0:01:20.8]} 15... Qxe2 {[%clk 0:01:28.1]} 16. Qa4 {[%clk 0:00:42.6]}
16... gxf6 {[%clk 0:01:17]} 17. Rhe1 {[%clk 0:00:39.6]} 17... Rxd1+ {[%clk
0:01:14.2]} 18. Rxd1 {[%clk 0:00:40.5]} 18... Qxf2 {[%clk 0:00:55]} 19. g4
{[%clk 0:00:29.8]} 19... Be6 {[%clk 0:00:38.7]} 20. Qe4 {[%clk 0:00:26.3]} 20...
Qxh2 {[%clk 0:00:25.8]} 21. b3 {[%clk 0:00:23.1]} 21... Qe5 {[%clk 0:00:22.9]}
22. Qf3 {[%clk 0:00:17.2]} 22... Qa1+ {[%clk 0:00:19.4]} 23. Kd2 {[%clk
0:00:16.9]} 23... Rd8+ {[%clk 0:00:19.9]} 0-1

[Event "Late-Titled-Tuesday-Blitz-April-02-2024"]
[Site "Chess.com"]
[Date "2024.04.02"]
[Round "5"]
[White "AlexeiShirov"]
[Black "carloseduar100"]
[Result "1/2-1/2"]
[WhiteElo "2790"]
[BlackElo "2221"]
[TimeControl "180+1"]
[EndTime "14:52:52 PDT"]
[Termination "Game drawn by repetition"]

1. e4 {[%clk 0:03:00.9]} 1... e6 {[%clk 0:02:59.6]} 2. d4 {[%clk 0:02:59.1]}
2... d5 {[%clk 0:02:59.6]} 3. e5 {[%clk 0:02:59.7]} 3... c5 {[%clk 0:02:59.4]}
4. c3 {[%clk 0:03:00.4]} 4... Nc6 {[%clk 0:02:59.5]} 5. Nf3 {[%clk 0:03:00.9]}
5... Qb6 {[%clk 0:02:58]} 6. Bd3 {[%clk 0:02:57.4]} 6... Bd7 {[%clk 0:02:57.4]}
7. O-O {[%clk 0:02:55.6]} 7... cxd4 {[%clk 0:02:57.5]} 8. Re1 {[%clk 0:02:54.8]}
8... g6 {[%clk 0:02:44.2]} 9. cxd4 {[%clk 0:02:46.7]} 9... Nxd4 {[%clk
0:02:42.7]} 10. Nxd4 {[%clk 0:02:46.3]} 10... Qxd4 {[%clk 0:02:43.6]} 11. Nc3
{[%clk 0:02:46.1]} 11... a6 {[%clk 0:02:41.2]} 12. Be3 {[%clk 0:02:42.2]} 12...
Qb4 {[%clk 0:02:30.9]} 13. a3 {[%clk 0:02:41.5]} 13... Qe7 {[%clk 0:02:31.1]}
14. Na4 {[%clk 0:02:40.7]} 14... Bg7 {[%clk 0:02:20]} 15. Nb6 {[%clk 0:02:28.3]}
15... Rd8 {[%clk 0:02:14.5]} 16. Rc1 {[%clk 0:02:24.6]} 16... Bc6 {[%clk
0:02:01.6]} 17. Bc5 {[%clk 0:02:21]} 17... Qg5 {[%clk 0:02:01.5]} 18. Qe2 {[%clk
0:02:14.1]} 18... Ne7 {[%clk 0:01:37.3]} 19. b4 {[%clk 0:02:09.1]} 19... Nf5
{[%clk 0:01:22.3]} 20. g3 {[%clk 0:02:04.4]} 20... h5 {[%clk 0:01:02.6]} 21. f4
{[%clk 0:01:58.8]} 21... Qg4 {[%clk 0:00:58.7]} 22. a4 {[%clk 0:01:33.1]} 22...
d4 {[%clk 0:00:50.5]} 23. Qxg4 {[%clk 0:01:18.5]} 23... hxg4 {[%clk 0:00:50.4]}
24. b5 {[%clk 0:01:05.7]} 24... axb5 {[%clk 0:00:49.6]} 25. axb5 {[%clk
0:01:03.3]} 25... Bf3 {[%clk 0:00:49.6]} 26. Nc4 {[%clk 0:00:57.7]} 26... Kd7
{[%clk 0:00:36.8]} 27. Bxf5 {[%clk 0:00:48.2]} 27... gxf5 {[%clk 0:00:36.1]} 28.
Nd6 {[%clk 0:00:48]} 28... Rxh2 {[%clk 0:00:12.6]} 29. Kxh2 {[%clk 0:00:36.3]}
29... Rh8+ {[%clk 0:00:12.4]} 30. Kg1 {[%clk 0:00:36.4]} 30... Rh1+ {[%clk
0:00:12.3]} 31. Kf2 {[%clk 0:00:36.6]} 31... Rh2+ {[%clk 0:00:12.6]} 32. Kf1
{[%clk 0:00:36.8]} 32... Rh1+ {[%clk 0:00:11.4]} 33. Kf2 {[%clk 0:00:36.8]}
33... Rh2+ {[%clk 0:00:12]} 34. Kg1 {[%clk 0:00:36.9]} 34... Rh1+ {[%clk
0:00:12.1]} 35. Kf2 {[%clk 0:00:37.1]} 1/2-1/2

[Event "Late-Titled-Tuesday-Blitz-April-02-2024"]
[Site "Chess.com"]
[Date "2024.04.02"]
[Round "5"]
[White "WCM-Mexicana"]
[Black "ExtremeLearner"]
[Result "1-0"]
[WhiteElo "2439"]
[BlackElo "2549"]
[TimeControl "180+1"]
[EndTime "14:52:57 PDT"]
[Termination "WCM-Mexicana won by resignation"]

1. d4 {[%clk 0:03:00.9]} 1... Nf6 {[%clk 0:02:57.6]} 2. c4 {[%clk 0:02:59.1]}
2... c5 {[%clk 0:02:57]} 3. dxc5 {[%clk 0:02:57.5]} 3... Na6 {[%clk 0:02:54.3]}
4. Nc3 {[%clk 0:02:55.7]} 4... Nxc5 {[%clk 0:02:52]} 5. f3 {[%clk 0:02:52]} 5...
d6 {[%clk 0:02:32.2]} 6. e4 {[%clk 0:02:50.8]} 6... g6 {[%clk 0:02:31.6]} 7. Be3
{[%clk 0:02:48.8]} 7... Qa5 {[%clk 0:02:28.2]} 8. a3 {[%clk 0:02:45.1]} 8... Ne6
{[%clk 0:02:19.1]} 9. b4 {[%clk 0:02:38.7]} 9... Qc7 {[%clk 0:02:18.3]} 10. Nd5
{[%clk 0:02:38.2]} 10... Nxd5 {[%clk 0:02:17.8]} 11. cxd5 {[%clk 0:02:39.1]}
11... Qc3+ {[%clk 0:02:11.3]} 12. Bd2 {[%clk 0:02:37.4]} 12... Qe5 {[%clk
0:02:10.9]} 13. dxe6 {[%clk 0:02:36.9]} 13... Bg7 {[%clk 0:02:01.8]} 14. exf7+
{[%clk 0:02:33.7]} 14... Kxf7 {[%clk 0:02:01.8]} 15. Bc4+ {[%clk 0:02:32.3]}
15... d5 {[%clk 0:02:00.8]} 16. Bxd5+ {[%clk 0:02:13.1]} 16... e6 {[%clk
0:02:00.7]} 17. Rc1 {[%clk 0:02:03.3]} 17... exd5 {[%clk 0:01:59.8]} 18. Ne2
{[%clk 0:02:03.2]} 18... Rd8 {[%clk 0:01:41.6]} 19. O-O {[%clk 0:01:51.3]} 19...
Be6 {[%clk 0:01:32.8]} 20. Bc3 {[%clk 0:01:49]} 20... d4 {[%clk 0:01:32.5]} 21.
Ba1 {[%clk 0:01:41]} 21... Rac8 {[%clk 0:01:18]} 22. Rxc8 {[%clk 0:01:39.6]}
22... Bxc8 {[%clk 0:01:18]} 23. Qd3 {[%clk 0:01:32.2]} 23... Bd7 {[%clk
0:01:00.3]} 24. Bxd4 {[%clk 0:01:17.7]} 24... Bb5 {[%clk 0:00:40.8]} 25. Qb3+
{[%clk 0:01:05.7]} 25... Qe6 {[%clk 0:00:40.7]} 26. Qxe6+ {[%clk 0:01:05.4]}
26... Kxe6 {[%clk 0:00:41.6]} 27. Nf4+ {[%clk 0:01:06.3]} 27... Kf7 {[%clk
0:00:41.7]} 28. Bxg7 {[%clk 0:01:04.7]} 28... Bxf1 {[%clk 0:00:41.6]} 29. Kxf1
{[%clk 0:01:05]} 29... Rd1+ {[%clk 0:00:40.4]} 30. Ke2 {[%clk 0:01:05.3]} 30...
Rg1 {[%clk 0:00:32.1]} 31. Bd4 {[%clk 0:01:02.1]} 31... Rh1 {[%clk 0:00:28.5]}
32. Bxa7 {[%clk 0:00:57.5]} 32... g5 {[%clk 0:00:28.2]} 33. Nh3 {[%clk
0:00:53.8]} 33... Rxh2 {[%clk 0:00:26.4]} 34. Kf1 {[%clk 0:00:45.9]} 34... Rh1+
{[%clk 0:00:25.1]} 35. Bg1 {[%clk 0:00:43.5]} 35... Kg6 {[%clk 0:00:24.9]} 36.
a4 {[%clk 0:00:41.6]} 36... h5 {[%clk 0:00:24.8]} 37. a5 {[%clk 0:00:39.7]}
37... g4 {[%clk 0:00:25.4]} 38. Nf2 {[%clk 0:00:38.5]} 38... Rh4 {[%clk
0:00:21.8]} 39. g3 {[%clk 0:00:37.2]} 1-0